fUST/lending_fUST_20260202
["ID","MTS","AMOUNT","RATE_DAILY","PERIOD"]
[404263829,1770014974538,-1135.88241977,0.00041096,31]
[404263830,1770014974558,-1135.88241977,0.00041096,31]
[404263831,1770014974583,-1135.88241977,0.00041096,31]
[404263832,1770014974604,-1135.88241977,0.00041096,31]
[404263833,1770014974625,-1135.88241977,0.00041096,31]
[404263834,1770014974647,-1135.88241977,0.00041096,31]
[404263835,1770014974667,-1135.88241977,0.00041096,31]
[404263836,1770014974694,-1135.88241975,0.00041096,31]
[404263837,1770014974715,-1135.88241975,0.00041096,31]
[404263838,1770014974737,-1135.88241975,0.00041096,31]
[404263839,1770014974758,-1135.88241975,0.00041096,31]
[404263840,1770014974780,-1135.88241975,0.00041096,31]
[404263841,1770014974801,-1135.88241975,0.00041096,31]
[404263842,1770014974824,-150.03895838,0.00042356,2]
[404263843,1770014974850,-150.0,0.000433,120]
[404263844,1770014974871,-13771.3424807,0.00043388,3]
[404263845,1770014974892,-20000.0,0.00043398,2]
[404263846,1770014974913,-224.81250646,0.00044413,2]
[404263847,1770014974934,-224.81250646,0.0004784,2]
[404263848,1770014974955,-210.0095213,0.0004784,2]
[404263849,1770014974975,-2719.810802,0.00049067,2]
[404263850,1770014974998,-171.72,0.000491,30]
[404263851,1770014975021,-151.0,0.0005,120]
[404263852,1770014975046,-990.0,0.00051131,120]
[404263853,1770014975069,-155.676,0.00051131,120]
[404263854,1770014975092,-2719.810802,0.00051133,2]
[404263855,1770014975113,-224.81250646,0.00051267,2]
[404263856,1770014975135,-300.99,0.000521,120]
[404263857,1770014975157,-151.0,0.000522,120]
[404263858,1770014975178,-2719.810802,0.00053198,2]
[404263859,1770014975199,-1495.361267,0.00054253,2]
[404263860,1770014975221,-151.0,0.000545,120]
[404263861,1770014975243,-224.81250646,0.00054694,2]
[404263862,1770014975264,-210.0095213,0.00054694,2]
[404263863,1770014975286,-13771.3424807,0.00054784,4]
[404263864,1770014975308,-644.89,0.00054794,120]
[404263865,1770014975329,-500.0,0.00054794,120]
[404263866,1770014975350,-500.0,0.00054794,120]
[404263867,1770014975371,-500.0,0.00054794,120]
[404263868,1770014975392,-514.69391865,0.00054794,120]
[404263869,1770014975412,-500.0,0.00054794,2]
[404263870,1770014975434,-517.57155927,0.00054794,120]
[404263871,1770014975455,-500.0,0.00054794,120]
[404263872,1770014975476,-1000.0,0.00054794,120]
[404263873,1770014975497,-366.70741785,0.00054794,120]
[404263874,1770014975519,-500.0,0.00054794,120]
[404263875,1770014975540,-500.0,0.00054794,120]
[404263876,1770014975562,-500.0,0.00054794,120]
[404263877,1770014975584,-641.34,0.00054794,120]
[404263878,1770014975605,-500.0,0.00054794,120]
[404263879,1770014975625,-216.36698811,0.00054794,120]
[404263880,1770014975646,-500.0,0.00054794,120]
[404263881,1770014975667,-2125.46,0.00054794,120]
[404263882,1770014975688,-18240.41,0.00054794,120]
[404263883,1770014975708,-2719.810802,0.00055264,2]
[404263884,1770014975728,-1041.66666667,0.00055632,2]
[404263885,1770014975749,-986.5509042,0.00056312,2]
[404263886,1770014975771,-151.0,0.000567,120]
[404263887,1770014975791,-181.5001415,0.00057307,2]
[404263888,1770014975810,-2719.810802,0.0005733,2]
[404263889,1770014975832,-2558.7502965,0.00057332,2]
[404263890,1770014975852,-13771.3424807,0.00057414,5]
[404263891,1770014975872,-17717.47305085,0.00057424,2]
[404263892,1770014975936,2097.94293507,0.00024953,2]
[404263893,1770014989139,522.3018547,0.0004002,120]
[404263912,1770015031937,-804.01911172,0.00024953,2]
[404263913,1770015031949,-2098.03795321,0.00024953,2]
[404263914,1770015031959,-150.05533008,0.00025205,2]
[404263916,1770015031968,-150.05533008,0.00041032,2]
[404263918,1770015031978,-380.0,0.0004126,120]
[404263920,1770015031987,-500.0,0.00054794,120]
[404263921,1770015031996,-150.05533008,0.00056858,2]
[404263923,1770015032005,-5173.89405807,0.00057424,2]
[404263943,1770015037951,-2911.48853827,0.0004002,20]
[404263944,1770015037963,-1040.027032,0.0004002,20]
[404264385,1770015044922,-2.04776438,0.0004002,20]
[404264482,1770015045972,-1046.43666535,0.0004002,20]
[404264484,1770015045981,-477.67679912,0.00057423,31]
[404264486,1770015045991,-175.88653553,0.00057423,31]
[404264488,1770015046002,-324.11346447,0.00057423,31]
[404264489,1770015046011,-500.0,0.00057423,31]
[404264492,1770015046020,-500.0,0.00057423,31]
[404264495,1770015046029,-500.0,0.00057423,31]
[404264497,1770015046038,-500.0,0.00057423,31]
[404264499,1770015046047,-353.15268955,0.00057423,31]
[404264502,1770015046057,-500.0,0.00057423,31]
[404264504,1770015046067,-500.0,0.00057423,31]
[404264506,1770015046080,-500.0,0.00057423,31]
[404264508,1770015046089,-500.0,0.00057423,31]
[404264509,1770015046100,-500.0,0.00057423,31]
[404264511,1770015046109,-500.0,0.00057423,31]
[404264513,1770015046118,-500.0,0.00057423,31]
[404264514,1770015046131,-500.0,0.00057423,31]
[404264516,1770015046140,-500.0,0.00057423,31]
[404264518,1770015046149,-500.0,0.00057423,31]
[404264520,1770015046158,-500.0,0.00057423,31]
[404264522,1770015046167,-500.0,0.00057423,31]
[404264524,1770015046176,-500.0,0.00057423,31]
[404264526,1770015046184,-496.1297771,0.00057423,31]
[404264528,1770015046195,-3.8702229,0.00057423,31]
[404264529,1770015046204,-500.0,0.00057423,31]
[404264530,1770015046213,-14610.85010768,0.00057424,2]
[404264531,1770015046222,-151.0,0.00059,120]
[404264532,1770015046231,-6798.45514818,0.00059375,5]
[404264934,1770015367825,19299.05738913,0.0001,2]
[404264935,1770015367853,25000.0,0.0001,2]
[404264936,1770015367884,25000.0,0.0001,2]
[404264937,1770015367914,6301.05261087,0.0001,2]
[404264990,1770015427200,500.0,0.00013699,2]
[404264991,1770015427245,414.53178864,0.00014247,2]
[404265103,1770015936120,-1621.02481907,0.00026052,2]
[404265139,1770016027101,-3378.97518093,0.00026052,2]
[404265140,1770016027125,-135.31970294,0.00026848,2]
[404265141,1770016035114,-1043.6360362,0.00024953,2]
[404265161,1770016150088,-3956.3639638,0.00024953,2]
[404265162,1770016150109,-1064.68029706,0.00026848,2]
[404265163,1770016150131,-150.06024795,0.00026849,2]
[404265164,1770016150151,-696.8822706,0.00032964,2]
[404265165,1770016150171,-136.35072059,0.00033236,60]
[404265166,1770016150196,-27.38155641,0.00033236,60]
[404265167,1770016150217,-400.0,0.00035259,2]
[404265168,1770016150235,-163.732277,0.00036661,60]
[404265169,1770016150257,-560.0,0.00037795,2]
[404265170,1770016150277,-205.54764063,0.00040005,31]
[404265171,1770016150300,-178.58890502,0.00040005,31]
[404265172,1770016150320,-213.2709449,0.00040005,31]
[404265173,1770016150340,-500.0,0.00040005,7]
[404265174,1770016150360,-500.0,0.00040005,31]
[404265175,1770016150379,-500.0,0.00040005,31]
[404265176,1770016150399,-554.40718171,0.00040005,7]
[404265177,1770016150421,-500.0,0.00040005,31]
[404265178,1770016150442,-500.0,0.00040005,31]
[404265179,1770016150464,-554.40718171,0.00040005,7]
[404265180,1770016150485,-500.0,0.00040005,31]
[404265181,1770016150505,-500.0,0.00040005,31]
[404265182,1770016150526,-500.0,0.00040005,7]
[404265183,1770016150550,-554.40718171,0.00040005,7]
[404265184,1770016150570,-300.0,0.00040005,7]
[404265185,1770016150592,-475.71273363,0.00040005,31]
[404265186,1770016150612,-408.35094189,0.00040005,31]
[404265187,1770016150632,-554.40718171,0.00040005,7]
[404265188,1770016150652,-500.0,0.00040005,31]
[404265189,1770016150673,-554.40718171,0.00040005,7]
[404265190,1770016150693,-500.0,0.00040005,7]
[404265191,1770016150713,-273.93541193,0.00040005,7]
[404265192,1770016153183,-280.47176978,0.00040005,7]
[404265193,1770016153206,-300.0,0.00040005,31]
[404265194,1770016153227,-554.40718171,0.00040005,7]
[404265195,1770016153247,-554.40718171,0.00040005,7]
[404265196,1770016153268,-554.40718171,0.00040005,7]
[404265197,1770016153291,-554.40718171,0.00040005,7]
[404265198,1770016153392,-554.40718171,0.00040005,7]
[404265199,1770016153418,-554.40718171,0.00040005,7]
[404265200,1770016153438,-554.40718171,0.00040005,7]
[404265201,1770016153459,-554.40718171,0.00040005,7]
[404265202,1770016153482,-554.40718171,0.00040005,7]
[404265203,1770016153502,-554.40718171,0.00040005,7]
[404265204,1770016153522,-554.40718171,0.00040005,7]
[404265205,1770016153544,-554.40718171,0.00040005,7]
[404265206,1770016153565,-554.40718171,0.00040005,7]
[404265207,1770016153587,-554.40718171,0.00040005,7]
[404265208,1770016153610,-554.40718171,0.00040005,7]
[404265209,1770016153633,-554.40718171,0.00040005,7]
[404265210,1770016153656,-554.40718171,0.00040005,7]
[404265211,1770016153678,-554.40718171,0.00040005,7]
[404265212,1770016153701,-554.40718171,0.00040005,7]
[404265213,1770016153723,-554.40718171,0.00040005,7]
[404265214,1770016153745,-554.40718171,0.00040005,7]
[404265215,1770016153768,-554.40718171,0.00040005,7]
[404265216,1770016153795,-554.40718171,0.00040005,7]
[404265217,1770016153817,-554.40718171,0.00040005,7]
[404265218,1770016153839,-554.40718171,0.00040005,7]
[404265219,1770016153861,-554.40718171,0.00040005,7]
[404265220,1770016153882,-554.40718171,0.00040005,7]
[404265221,1770016153904,-554.40718171,0.00040005,7]
[404265222,1770016153927,-554.40718171,0.00040005,7]
[404265223,1770016153949,-554.40718171,0.00040005,7]
[404265224,1770016153971,-554.40718171,0.00040005,7]
[404265225,1770016153992,-554.40718171,0.00040005,7]
[404265226,1770016154014,-554.40718171,0.00040005,7]
[404265227,1770016154035,-554.40718171,0.00040005,7]
[404265228,1770016154061,-554.40718171,0.00040005,7]
[404265229,1770016154083,-554.40718171,0.00040005,7]
[404265230,1770016154103,-554.40718171,0.00040005,7]
[404265231,1770016154125,-554.40718171,0.00040005,7]
[404265232,1770016154147,-554.40718171,0.00040005,7]
[404265233,1770016154168,-554.40718171,0.00040005,7]
[404265234,1770016154190,-554.40718171,0.00040005,7]
[404265235,1770016154212,-554.40718171,0.00040005,7]
[404265236,1770016154234,-554.40718171,0.00040005,7]
[404265237,1770016154260,-554.40718171,0.00040005,7]
[404265238,1770016154283,-552.90878392,0.00040005,7]
[404265239,1770016154310,-552.90878392,0.00040005,7]
[404265240,1770016154332,-552.90878392,0.00040005,7]
[404265241,1770016154353,-552.90878392,0.00040005,7]
[404265242,1770016154375,-552.90878392,0.00040005,7]
[404265243,1770016154397,-552.90878392,0.00040005,7]
[404265244,1770016154423,-552.90878392,0.00040005,7]
[404265245,1770016154446,-552.90878392,0.00040005,7]
[404265246,1770016154467,-552.90878392,0.00040005,7]
[404265247,1770016154490,-552.90878392,0.00040005,7]
[404265248,1770016154512,-552.90878392,0.00040005,7]
[404265249,1770016154535,-552.90878392,0.00040005,7]
[404265250,1770016154559,-552.90878392,0.00040005,7]
[404265251,1770016154580,-552.90878392,0.00040005,7]
[404265252,1770016154602,-552.90878392,0.00040005,7]
[404265253,1770016154624,-552.90878392,0.00040005,7]
[404265254,1770016154647,-552.90878392,0.00040005,7]
[404265255,1770016154668,-552.90878392,0.00040005,7]
[404265256,1770016154689,-552.90878392,0.00040005,7]
[404265257,1770016154714,-552.90878392,0.00040005,7]
[404265258,1770016154736,-552.90878392,0.00040005,7]
[404265259,1770016154759,-552.90878392,0.00040005,7]
[404265260,1770016154781,-552.90878392,0.00040005,7]
[404265261,1770016154806,-552.90878392,0.00040005,7]
[404265262,1770016154828,-552.90878392,0.00040005,7]
[404265263,1770016154850,-552.90878392,0.00040005,7]
[404265264,1770016154871,-740.75809701,0.00040007,7]
[404265265,1770016154893,-500.0,0.00040008,20]
[404265266,1770016154915,-500.0,0.00040008,20]
[404265267,1770016154935,-500.0,0.00040008,20]
[404265268,1770016154956,-500.0,0.00040008,20]
[404265269,1770016154976,-500.0,0.00040008,20]
[404265270,1770016154997,-500.0,0.00040008,20]
[404265271,1770016155017,-500.0,0.00040008,20]
[404265272,1770016155039,-500.0,0.00040008,20]
[404265273,1770016155060,-500.0,0.00040008,20]
[404265274,1770016155082,-500.0,0.00040008,20]
[404265275,1770016155103,-500.0,0.00040008,20]
[404265276,1770016155124,-500.0,0.00040008,20]
[404265277,1770016155144,-500.0,0.00040008,20]
[404265278,1770016155165,-500.0,0.00040008,20]
[404265279,1770016155185,-500.0,0.00040008,20]
[404265280,1770016155206,-500.0,0.00040008,20]
[404265281,1770016155227,-500.0,0.00040008,20]
[404265282,1770016155247,-500.0,0.00040008,20]
[404265283,1770016155268,-500.0,0.00040008,20]
[404265284,1770016155289,-500.0,0.00040008,20]
[404265285,1770016155309,-500.0,0.00040008,20]
[404265286,1770016155331,-500.0,0.00040008,20]
[404265287,1770016155353,-500.0,0.00040008,20]
[404265288,1770016155374,-500.0,0.00040008,20]
[404265289,1770016155394,-500.0,0.00040008,20]
[404265290,1770016155417,-500.0,0.00040008,20]
[404265291,1770016155438,-500.0,0.00040008,20]
[404265292,1770016155460,-500.0,0.00040008,20]
[404265293,1770016155481,-500.0,0.00040008,20]
[404265294,1770016155506,-500.0,0.00040008,20]
[404265295,1770016155527,-500.0,0.00040008,20]
[404265296,1770016155553,-500.0,0.00040008,20]
[404265297,1770016155575,-500.0,0.00040008,20]
[404265298,1770016155596,-500.0,0.00040008,20]
[404265299,1770016155618,-500.0,0.00040008,20]
[404265300,1770016155640,-500.0,0.00040008,20]
[404265301,1770016155662,-500.0,0.00040008,20]
[404265302,1770016155683,-500.0,0.00040008,20]
[404265303,1770016155705,-500.0,0.00040008,20]
[404265304,1770016155726,-500.0,0.00040008,20]
[404265305,1770016155869,-500.0,0.00040008,20]
[404265306,1770016155892,-500.0,0.00040008,20]
[404265307,1770016155913,-500.0,0.00040008,20]
[404265308,1770016155934,-500.0,0.00040008,20]
[404265309,1770016155956,-500.0,0.00040008,20]
[404265310,1770016155977,-500.0,0.00040008,20]
[404265311,1770016155998,-500.0,0.00040008,20]
[404265312,1770016156018,-500.0,0.00040008,20]
[404265313,1770016156039,-500.0,0.00040008,20]
[404265314,1770016156060,-500.0,0.00040008,20]
[404265315,1770016156082,-500.0,0.00040008,20]
[404265316,1770016156104,-500.0,0.00040008,20]
[404265317,1770016156125,-500.0,0.00040008,20]
[404265318,1770016156147,-500.0,0.00040008,20]
[404265319,1770016156168,-500.0,0.00040008,20]
[404265320,1770016156189,-500.0,0.00040008,20]
[404265321,1770016156210,-500.0,0.00040008,20]
[404265322,1770016156230,-500.0,0.00040008,20]
[404265323,1770016156251,-500.0,0.00040008,20]
[404265324,1770016156272,-500.0,0.00040008,20]
[404265325,1770016156295,-500.0,0.00040008,20]
[404265326,1770016156316,-500.0,0.00040008,20]
[404265327,1770016156338,-500.0,0.00040008,20]
[404265328,1770016156358,-500.0,0.00040008,20]
[404265329,1770016156379,-500.0,0.00040008,20]
[404265330,1770016156399,-500.0,0.00040008,20]
[404265331,1770016156423,-500.0,0.00040008,20]
[404265332,1770016156445,-500.0,0.00040008,20]
[404265333,1770016156466,-500.0,0.00040008,20]
[404265334,1770016156490,-157.0,0.00040008,20]
[404265335,1770016156510,-502.31568725,0.00040023,20]
[404265336,1770016156531,-163.732277,0.00040085,60]
[404265337,1770016156554,-410.0,0.00040514,5]
[404265338,1770016156575,-2954.094146,0.00041099,2]
[404265339,1770016156595,-2740.34289481,0.00042,2]
[404265340,1770016156618,-150.06024795,0.00042621,2]
[404265341,1770016156639,-163.732277,0.0004351,60]
[404265342,1770016156659,-163.732277,0.00046935,60]
[404265343,1770016156680,-384.5117464,0.00047065,30]
[404265344,1770016156700,-305.857599,0.00047202,30]
[404265345,1770016156721,-19499.3631076,0.00048014,4]
[404265346,1770016156742,-305.857599,0.00048024,30]
[404265347,1770016156763,-305.857599,0.00048024,30]
[404265348,1770016156784,-305.857599,0.00048024,30]
[404265349,1770016156808,-305.857599,0.00048024,30]
[404265350,1770016156829,-305.857599,0.00048024,30]
[404265351,1770016156851,-305.857599,0.00048024,30]
[404265352,1770016156873,-305.857599,0.00048024,30]
[404265353,1770016156894,-305.857599,0.00048024,30]
[404265354,1770016156916,-305.857599,0.00048024,30]
[404265355,1770016156938,-305.857599,0.00048024,30]
[404265356,1770016156963,-305.857599,0.00048024,30]
[404265357,1770016156986,-305.857599,0.00048024,30]
[404265358,1770016157008,-305.857599,0.00048024,30]
[404265359,1770016157029,-305.857599,0.00048024,30]
[404265360,1770016157054,-305.857599,0.00048024,30]
[404265361,1770016157075,-1000.0,0.00049927,30]
[404265362,1770016157097,-152.0,0.0005,120]
[404265363,1770016157118,-152.0,0.000508,120]
[404265364,1770016157139,-152.0,0.000517,120]
[404265365,1770016157166,-152.0,0.000525,120]
[404265366,1770016157188,-363.0002832,0.00053258,2]
[404265367,1770016157211,-152.0,0.000534,120]
[404265368,1770016157232,-152.0,0.000542,120]
[404265369,1770016157254,-25549.2670336,0.00054742,2]
[404265370,1770016157275,-224.29,0.00054774,30]
[404265371,1770016157296,-186.9,0.00054774,30]
[404265372,1770016157317,-155.75,0.00054774,30]
[404265373,1770016157338,-778.8,0.00054774,30]
[404265374,1770016157360,-9511.23233025,0.00054784,4]
[404265375,1770016162089,-305.857599,0.00047202,30]
[404265376,1770016162109,-150.0,0.00049927,120]
[404265377,1770016162130,-177.0,0.00051927,120]
[404265378,1770016162152,-204.0,0.00053927,120]
[404265379,1770016162170,-9988.13077735,0.00054784,4]
[404265380,1770016162189,-526.30987633,0.00054794,120]
[404265381,1770016162208,-500.0,0.00054794,120]
[404265382,1770016162228,-500.0,0.00054794,120]
[404265383,1770016162247,-1000.0,0.00054794,120]
[404265384,1770016162265,-500.0,0.00054794,120]
[404265385,1770016162286,-2036.9,0.00054794,120]
[404265386,1770016162306,-500.0,0.00054794,120]
[404265387,1770016162325,-500.0,0.00054794,120]
[404265388,1770016162345,-500.0,0.00054794,120]
[404265389,1770016162442,-4544.18,0.00054794,2]
[404265390,1770016162463,-500.0,0.00054794,120]
[404265391,1770016162484,-500.0,0.00054794,120]
[404265392,1770016162504,-500.0,0.00054794,120]
[404265393,1770016162523,-500.0,0.00054794,120]
[404265394,1770016162541,-500.0,0.00054794,120]
[404265395,1770016162565,-500.0,0.00054794,120]
[404265396,1770016162584,-500.0,0.00054794,120]
[404265397,1770016162604,-1000.0,0.00054794,2]
[404265398,1770016162626,-731.7,0.00054794,120]
[404265399,1770016162646,-500.0,0.00054794,120]
[404265400,1770016162665,-2072.93,0.00054794,120]
[404265401,1770016162686,-17480.39,0.00054794,120]
[404265402,1770016162707,-500.0,0.00054999,120]
[404265403,1770016162725,-500.0,0.00054999,120]
[404265404,1770016162744,-4000.0,0.00055,120]
[404265405,1770016162764,-152.0,0.000551,120]
[404265406,1770016162785,-487.0826725,0.0005517,2]
[404265407,1770016162807,-152.0,0.000559,120]
[404265408,1770016162828,-231.0,0.00055927,120]
[404265409,1770016162848,-152.0,0.000567,120]
[404265410,1770016162869,-19499.3631076,0.0005689,5]
[404265411,1770016162889,-1385.07437944,0.000569,120]
[404265451,1770016231940,-1002.31568725,0.00024953,2]
[404265465,1770016238207,-3997.68431275,0.00024953,2]
[404265466,1770016238216,-745.29,0.00053498,120]
[404265467,1770016238226,-745.29,0.00053498,120]
[404265468,1770016238235,-745.29,0.00053498,120]
[404265469,1770016238245,-745.29,0.00054793,120]
[404265470,1770016238255,-745.29,0.00054988,120]
[404265471,1770016238264,-745.29,0.00054999,120]
[404265472,1770016238273,-833.80437631,0.00055,30]
[404265473,1770016238285,-2650.0,0.00055,30]
[404265477,1770016240351,-1647.56863355,0.00055,30]
[404265478,1770016240363,-304.247,0.00055,30]
[404265479,1770016240377,-334.3159,0.00055,30]
[404265480,1770016240399,-1376.99468657,0.00055,30]
[404265903,1770016245338,-500.0,0.00054794,120]
[404265905,1770016245348,-500.0,0.00054794,120]
[404265907,1770016245357,-4000.0,0.00055,30]
[404266038,1770016246615,-494.29582091,0.00055,30]
[404266040,1770016246629,-3279.78382833,0.00055,30]
[404266042,1770016246639,-745.29,0.00056899,120]
[404266044,1770016246648,-250.0,0.00056899,120]
[404266046,1770016246657,-250.0,0.00056899,120]
[404266048,1770016246667,-250.0,0.00056899,120]
[404266050,1770016246676,-250.0,0.00056899,120]
[404266052,1770016246685,-2000.0,0.00056899,120]
[404266054,1770016246694,-250.0,0.00056899,120]
[404266056,1770016246703,-2000.0,0.00056899,120]
[404266058,1770016246712,-290.64648517,0.00056899,120]
[404266060,1770016246722,-2000.0,0.00056899,120]
[404266062,1770016246731,-2000.0,0.00056899,120]
[404266064,1770016246740,-2000.0,0.00056899,120]
[404266066,1770016246749,-2000.0,0.00056899,120]
[404266068,1770016246758,-2000.0,0.00056899,120]
[404266070,1770016246767,-2000.0,0.00056899,120]
[404266071,1770016246776,-2000.0,0.00056899,120]
[404266073,1770016246785,-2000.0,0.00056899,120]
[404266076,1770016246795,-2000.0,0.00056899,120]
[404266077,1770016246804,-2000.0,0.00056899,120]
[404266079,1770016246814,-2000.0,0.00056899,120]
[404266081,1770016246824,-2000.0,0.00056899,120]
[404266083,1770016246833,-2000.0,0.00056899,120]
[404266085,1770016246842,-2000.0,0.00056899,120]
[404266087,1770016246851,-2000.0,0.00056899,120]
[404266089,1770016246860,-2000.0,0.00056899,120]
[404266091,1770016246869,-207.0946672,0.00056899,120]
[404266093,1770016246883,-1792.9053328,0.00056899,120]
[404266095,1770016246892,-2000.0,0.00056899,120]
[404266097,1770016246901,-32583.58562056,0.000569,120]
[404266099,1770016246910,-745.29,0.00057489,120]
[404266101,1770016246920,-4000.0,0.000575,120]
[404266103,1770016246930,-152.0,0.000576,120]
[404266105,1770016246940,-745.29,0.00057689,120]
[404266107,1770016246949,-215.0,0.000577,120]
[404266109,1770016246958,-258.0,0.00057927,120]
[404266111,1770016246967,-150.06024795,0.00058392,2]
[404266113,1770016246976,-152.0,0.000584,120]
[404266115,1770016246986,-1000.0,0.00059,120]
[404266117,1770016246995,-874.141308,0.00059,120]
[404266119,1770016247004,-3000.0,0.00059,120]
[404266121,1770016247014,-215.0,0.00059,120]
[404266123,1770016247023,-4000.0,0.00059,120]
[404266125,1770016247033,-152.0,0.000593,120]
[404266127,1770016247042,-2719.810802,0.00059395,2]
[404266129,1770016247051,-2032.33,0.00059899,120]
[404266131,1770016247060,-500.0,0.00059899,120]
[404266133,1770016247069,-339.25,0.000599,30]
[404266135,1770016247079,-285.0,0.00059927,120]
[404266137,1770016247088,-745.29,0.00059999,120]
[404266139,1770016247097,-2666.93416727,0.0006,120]
[404266142,1770016247108,-333.06583273,0.0006,120]
[404266143,1770016247117,-152.0,0.000601,120]
[404266146,1770016247127,-152.0,0.00061,120]
[404266147,1770016247139,-152.0,0.000618,120]
[404266149,1770016247148,-2932.72393102,0.00061884,3]
[404266526,1770016395608,213.53471288,0.00013273,2]
[404266652,1770017131123,-238.19796493,0.00020429,2]
[404266653,1770017151221,-1462.32759285,0.00020429,2]
[404266654,1770017151243,-4837.065848,0.00020635,2]
[404266659,1770017223755,200.0,0.00016473,2]
[404266660,1770017223818,282.92707802,0.00017842,2]
[404266662,1770017227100,-820.62587969,0.00020429,2]
[404266673,1770017230114,-4179.37412031,0.00020429,2]
[404266674,1770017230135,-150.0,0.00020739,2]
[404266675,1770017230154,-287.0003194,0.00021537,2]
[404266676,1770017230175,-150.38236857,0.00021918,2]
[404266677,1770017230196,-177.0,0.00022739,2]
[404266678,1770017230217,-204.0,0.00024739,2]
[404266679,1770017230238,-1200.0,0.00026323,2]
[404266680,1770017230260,-265.57034231,0.00026324,2]
[404266681,1770017232099,-498.54085039,0.00026324,2]
[404266682,1770017232120,-904.24435803,0.00026573,2]
[404266684,1770017260149,9303.5482091,0.00018,2]
[404266686,1770017260180,25000.0,0.00018,2]
[404266687,1770017260208,25000.0,0.00018,2]
[404266688,1770017260236,5227.4569654,0.00018,2]
[404266708,1770017295934,1000.0,0.00013821,2]
[404266709,1770017295998,500.0,0.00013273,2]
[404266710,1770017301534,18272.5430346,0.00017,2]
[404266711,1770017301561,7408.38946716,0.00017,2]
[404266712,1770017309658,216.37108345,0.00016,2]
[404266718,1770017345457,500.0,0.00013273,2]
[404266719,1770017350254,346.84863601,0.00013673,2]
[404266720,1770017350906,500.0,0.00013699,2]
[404266721,1770017350956,500.0,0.00014247,2]
[404266722,1770017353112,-696.95406077,0.0001747,2]
[404266723,1770017353135,-2132.2193609,0.00024142,2]
[404266724,1770017353162,-5917.92694667,0.0002465,2]
[404266725,1770017353185,-155.31,0.00025205,2]
[404266726,1770017353209,-13775.753588,0.00026,30]
[404266727,1770017353235,-5000.0,0.00026307,2]
[404266728,1770017353262,-500.0,0.00026572,2]
[404266729,1770017353286,-500.0,0.00026572,2]
[404266730,1770017353313,-500.0,0.00026572,2]
[404266731,1770017353336,-619.43021066,0.00026572,2]
[404266732,1770017353361,-500.0,0.00026572,2]
[404266733,1770017353386,-500.0,0.00026572,2]
[404266734,1770017353411,-500.0,0.00026572,2]
[404266735,1770017353436,-500.0,0.00026572,2]
[404266736,1770017353460,-500.0,0.00026572,2]
[404266737,1770017353484,-500.0,0.00026572,2]
[404266738,1770017353510,-500.0,0.00026572,2]
[404266739,1770017353617,-500.0,0.00026572,2]
[404266740,1770017353644,-466.55211782,0.00026572,2]
[404266741,1770017353669,-500.0,0.00026572,2]
[404266742,1770017353694,-500.0,0.00026572,2]
[404266743,1770017353719,-500.0,0.00026572,2]
[404266744,1770017353745,-500.0,0.00026572,2]
[404266745,1770017353769,-500.0,0.00026572,2]
[404266746,1770017353795,-500.0,0.00026572,2]
[404266747,1770017353819,-500.0,0.00026572,2]
[404266748,1770017353846,-500.0,0.00026572,2]
[404266749,1770017353874,-500.0,0.00026572,2]
[404266750,1770017353901,-500.0,0.00026572,2]
[404266751,1770017353928,-500.0,0.00026572,2]
[404266752,1770017353955,-500.0,0.00026572,2]